Cogmind - Beta 10.2 @@@ ROGUE MODE // 2021.05.05 @ 07:27:21 Player: thingamajigger Result: Destroyed by G-73 Enforcer with Heavy Laser Performance ------------- Evolutions (9) 4500 Regions Visited (30) 6000 Robots Destroyed (189) 945 Value Destroyed (7538) 7538 Prototype IDs (71) 1420 Alien Tech Used (11) 2200 Bonus (11683) 11683 TOTAL SCORE: 34286 Bonus ------- High Alert Combat Kills 284 Follower Combat Kills 1601 Network Hubs Disabled 400 Met Data Miner 300 Met Zhirov 300 Met Warlord at Base 500 MAIN.C Attacked Warlord 500 Built Enhanced Grunts 300 A7 Reached Mainframe 300 Used Core Reset Matrix 3000 Scanned by Researcher 500 Acquired SGEMP 2000 Met Sigix 2000 Friendly Fire -302 Cogmind --------- Core Integrity 0/1600 Matter 300/300 Energy 99/100 System Corruption 6% Temperature Cool (9) Movement Core (50) Location -1/Access Parts ------- > --- POWER (3) -------- (None) > --- PROPULSION (6) --- (None) > --- UTILITY (14) ----- Advanced Terrain Scan Processor Advanced Targeting Computer > --- WEAPON (2) ------- (None) > --- INVENTORY (4) ---- Light Quantum Reactor SGEMP Prototype Peak State ------------ > --- POWER ------------ Fusion Reactor Light Antimatter Reactor Particle Reactor > --- PROPULSION ------- Antigrav System Gyrokinetic Inverter Improved Gyrokinetic Inverter Cooled Antigrav System Cooled Antigrav System Combat Linear Gravjet > --- UTILITY ---------- Experimental Cooling System Large Storage Unit Long-range Sensor Array Advanced Signal Interpreter Improved Cloaking Device Improved Hacking Suite Improved Hacking Suite Advanced Hacking Suite Ghost Barrier Stasis Generator > --- WEAPON ----------- Core Stripper > --- INVENTORY -------- Antigrav System Reaction Control System Advanced Component Analysis Suite Transdimensional Reconstructor KE Penetrator Enhanced Coil Gun Fusion Bomb Launcher Advanced Datajack Great Maul [Rating: 164] Favorites ----------- Power Improved Deuterium Engine Engine Improved Deuterium Engine Power Core Enhanced Fission Core Reactor Quantum Reactor Propulsion Light Treads Treads Light Treads Leg Flexi-carbon Leg Hover Unit Cooled Antigrav System Flight Unit Impulse Thruster Array Utility Advanced Targeting Computer Device Weapon Cycler Storage Small Storage Unit Processor Advanced Targeting Computer Hackware Improved Hacking Suite Protection Hardened Medium Armor Plating Artifact Stasis Generator Weapon Minigun Energy Gun Vortex Shotgun Energy Cannon Heavy Plasma Cannon Ballistic Gun Minigun Ballistic Cannon Assault Cannon Launcher Improved Proton Missile Launcher Impact Weapon Great Maul Special Melee Weapon Advanced Datajack Build | -11 -10 -9 -8 -7 -7 -7 -7 -6 -6 -6 -6 -6 -6 -5 -5 -5 -5 -5 -5 -4 -4 -4 -4 -4 -3 -3 -3 -2 -2 -1 ------- Run | Scr Mat Mat Mat Fac Low Low Dat Pro Fac Ext Cet Arc Hub Fac Was Fac Upp Upp War Pro Fac Upp Upp Zhi Pro Res Qua Res Tes Acc Slots Evolved 18 | . . 2 2 2 . . . . 2 . . . . 2 . . . . . . 2 . . . . 2 . 2 . 2 Power 2 | . . . . . . . . . 1 . . . . . . . . . . . . . . . . 1 . . . . Propulsion 4 | . . . . . . . . . 1 . . . . 2 . . . . . . 1 . . . . . . . . . Utility 12 | . . 2 2 2 . . . . . . . . . . . . . . . . 1 . . . . 1 . 2 . 2 Weapon . | . . . . . . . . . . . . . . . . . . . . . . . . . . . . . . . Parts Attached 339 | 11 1 15 21 14 8 7 . 4 14 17 7 9 19 21 1 28 11 3 13 2 11 3 . 9 2 12 29 11 16 20 Power 43 | 1 . 1 1 1 . . . . 3 1 1 1 3 4 . 4 . . 1 . . . . 2 . 4 . 2 8 5 Engine 13 | 1 . 1 1 1 . . . . 1 1 . 1 3 . . 1 . . . . . . . . . . . . 2 . Core 12 | . . . . . . . . . 2 . . . . 4 . 3 . . . . . . . 1 . 1 . . 1 . Reactor 18 | . . . . . . . . . . . 1 . . . . . . . 1 . . . . 1 . 3 . 2 5 5 Propulsion 58 | 4 . 4 3 1 . . . . 2 3 . 2 5 4 1 8 . . 3 . 4 . . 1 . 4 4 3 . 2 Treads 18 | 2 . 4 3 1 . . . . 2 3 . 2 1 . . . . . . . . . . . . . . . . . Leg 6 | 2 . . . . . . . . . . . . 4 . . . . . . . . . . . . . . . . . Wheel . | . . . . . . . . . . . . . . . . . . . . . . . . . . . . . . . Hover 29 | . . . . . . . . . . . . . . 4 1 8 . . 3 . 4 . . 1 . 4 4 . . . Flight 5 | . . . . . . . . . . . . . . . . . . . . . . . . . . . . 3 . 2 Utility 137 | 2 . 4 9 6 2 4 . 1 6 7 2 3 6 8 . 13 5 3 5 1 3 . . 6 2 3 11 5 7 13 Device 84 | . . . 2 4 2 4 . 1 5 6 2 2 3 6 . 9 5 3 4 1 2 . . 2 2 1 7 1 . 10 Storage 14 | 2 . 1 3 . . . . . . . . . 2 2 . 2 . . . . . . . 1 . . . . 1 . Processor 13 | . . . 1 1 . . . . . 1 . . . . . . . . . . . . . . . 1 . 4 3 2 Hackware 9 | . . . 1 . . . . . 1 . . 1 1 . . 1 . . 1 . 1 . . 1 . 1 . . . . Protection 12 | . . 3 2 1 . . . . . . . . . . . 1 . . . . . . . 2 . . . . 3 . Artifact 5 | . . . . . . . . . . . . . . . . . . . . . . . . . . . 4 . . 1 Weapon 101 | 4 1 6 8 6 6 3 . 3 3 6 4 3 5 5 . 3 6 . 4 1 4 3 . . . 1 14 1 1 . Energy Gun 22 | 3 . 5 3 . . . . . . 1 2 1 1 1 . . . . 2 . 2 1 . . . . . . . . Energy Cannon 3 | . . . . . . . . . . . . . . 1 . . . . 1 . . . . . . . 1 . . . Ballistic Gun 38 | 1 1 1 3 4 3 2 . 2 2 4 1 2 2 2 . 2 2 . . . . 1 . . . . 3 . . . Ballistic Cannon 1 | . . . 1 . . . . . . . . . . . . . . . . . . . . . . . . . . . Launcher 19 | . . . 1 . 3 1 . 1 1 1 1 . . 1 . 1 3 . . 1 . 1 . . . . 3 . . . Special Weapon . | . . . . . . . . . . . . . . . . . . . . . . . . . . . . . . . Impact Weapon 15 | . . . . 2 . . . . . . . . 2 . . . . . . . 2 . . . . 1 7 . 1 . Slashing Weapon . | . . . . . . . . . . . . . . . . . . . . . . . . . . . . . . . Piercing Weapon . | . . . . . . . . . . . . . . . . . . . . . . . . . . . . . . . Special Melee Weapon 3 | . . . . . . . . . . . . . . . . . 1 . 1 . . . . . . . . 1 . . Unidentified Prototypes 33 | . . 1 . 1 . . . . . . 1 . . 2 . 1 . . 8 . . . . 4 . . 8 2 4 1 Parts Lost 100 | . . 4 12 1 . 1 . . 4 3 1 1 18 . . 5 1 . . . 1 . . . 1 . 16 2 15 14 Power 17 | . . . 1 . . . . . . 1 . . 5 . . . . . . . . . . . . . 2 . 6 2 Propulsion 23 | . . 1 1 . . . . . 1 1 . 1 7 . . 2 . . . . . . . . . . 4 . 1 4 Utility 39 | . . 1 4 . . 1 . . 2 . . . 2 . . 3 1 . . . . . . . . . 9 2 6 8 Weapon 21 | . . 2 6 1 . . . . 1 1 1 . 4 . . . . . . . 1 . . . 1 . 1 . 2 . Highest Loss Streak 10 | . . 2 4 1 . 1 . . 2 2 1 1 7 . . 2 1 . . . 1 . . . 1 . 9 2 10 6 Average Slot Usage (%) 91 | . 90 88 93 99 100 100 100 100 96 96 92 98 94 78 88 87 93 94 91 88 86 88 89 90 91 94 87 51 60 35 Engine 4 | . 5 7 8 7 7 7 7 7 6 12 6 6 7 . . . . . . . . . . . . . . . . . Core 2 | . . . . . . . . . 6 . . . . 7 11 10 11 11 9 . . . . 1 5 3 . . . . Reactor 2 | . . . . . . . . . . . 5 6 2 . . . . . . 5 5 5 5 5 5 6 13 6 4 4 Treads 10 | . 28 22 17 15 15 15 15 15 17 16 13 18 11 . . . . . . . . . . . . . . . . . Hover 8 | . . . . . . . . . . . . . . 15 17 23 23 23 22 23 24 26 26 26 26 25 27 . . . Device 12 | . . . 14 18 15 15 15 15 8 19 13 12 9 17 17 8 11 17 15 11 15 15 15 14 15 14 16 13 9 7 Storage 11 | . 28 25 18 15 15 15 15 15 13 13 13 13 11 2 5 5 5 5 5 5 5 5 5 5 5 4 4 4 4 . Processor 12 | . . . 5 9 15 15 15 15 13 13 20 20 20 17 17 17 17 17 17 17 13 10 10 10 10 9 3 5 16 18 Hackware 6 | . . . 1 7 7 7 7 7 12 6 6 6 10 5 5 6 9 5 6 11 10 15 15 15 15 19 12 4 3 . Protection 2 | . . 11 10 7 7 7 7 7 4 . . . . . . . . . . . . . . . . . . . . . Energy Gun 2 | . 4 13 11 . . . . . . . 4 . . 1 . . . . 6 6 2 2 5 5 5 4 . . . . Ballistic Gun 8 | . 23 8 5 11 9 9 15 10 12 12 8 12 11 7 11 10 6 5 1 . . 2 . . . . 1 . . . Launcher 1 | . . . . . 4 4 . 4 . . . . . . . . 3 5 . 4 3 4 5 5 2 . 1 . . . Naked Turns . | . . . . . . . . . . . . . . . . . . . . . . . . . . . . . . . Heaviest Build 121 | 17 17 29 29 45 42 42 42 42 48 45 55 54 63 58 58 58 65 60 85 85 73 72 72 72 63 77 121 81 79 55 Greatest Support 121 | 40 40 40 40 42 42 42 42 42 62 62 40 66 66 72 88 88 97 97 109 100 117 117 117 117 105 121 121 88 81 54 Greatest Overweight (x) 3 | 2 . . 1 2 . . . . 1 1 1 2 3 1 . 1 . . . . . . . . 1 . 1 1 1 2 Average Overweight (x) . | . . . . . . . . . . . 1 . . . . . . . . . . . . . . . . . . . Largest Inventory Capacity 16 | 8 8 8 10 10 10 10 10 10 10 10 10 10 16 10 10 16 10 10 10 10 10 10 10 10 10 10 10 10 10 4 Average Capacity 9 | 6 8 8 7 10 10 10 10 10 10 10 10 10 11 7 10 10 10 10 10 10 10 10 10 10 10 10 10 10 9 4 Most Carried 14 | 3 8 8 8 10 10 10 9 10 10 10 10 10 14 10 10 10 10 10 10 10 10 10 10 10 10 10 10 9 10 4 Average Carried 9 | 2 5 7 7 9 10 9 9 9 9 9 9 9 10 6 10 9 9 9 9 10 9 9 10 9 9 9 8 7 7 3 Final Capacity 10 | 8 8 8 10 10 10 10 10 10 10 10 10 10 4 10 10 10 10 10 10 10 10 10 10 10 10 10 10 10 4 4 Final Carried 10 | 3 6 8 7 10 10 9 9 10 10 10 10 10 4 10 10 10 10 10 10 10 10 10 10 10 10 10 6 8 4 3 Class Distribution -------------------- 35% | Mutant 24% | Scavenger-Mutant 21% | Hacker-Mutant 13% | Commander-Mutant Dominant Class ---------------- Mutant | -10/Materials Mutant | -9/Materials Scavenger-Mutant | -8/Materials Mutant | -7/Factory Mutant | -7/Lower Caves Mutant | -7/Lower Caves Mutant | -7/Data Miner Mutant | -6/Proximity Caves Hacker-Mutant | -6/Factory Commander-Mutant | -6/Extension Commander-Mutant | -6/Cetus Scavenger-Mutant | -6/Archives Scavenger-Mutant | -6/Hub_04(d) Mutant | -5/Factory Mutant | -5/Waste Mutant | -5/Factory Hacker-Mutant | -5/Upper Caves Mutant | -5/Upper Caves Commander-Mutant | -5/Warlord Hacker-Mutant | -4/Proximity Caves Hacker-Mutant | -4/Factory Hacker-Mutant | -4/Upper Caves Hacker-Mutant | -4/Upper Caves Hacker-Mutant | -4/Zhirov Hacker-Mutant | -3/Proximity Caves Hacker-Mutant | -3/Research Hacker-Mutant | -3/Quarantine Generator-Mutant | -2/Research Scavenger-Mutant | -2/Testing Mutant | -1/Access Resources | -11 -10 -9 -8 -7 -7 -7 -7 -6 -6 -6 -6 -6 -6 -5 -5 -5 -5 -5 -5 -4 -4 -4 -4 -4 -3 -3 -3 -2 -2 -1 ----------- Run | Scr Mat Mat Mat Fac Low Low Dat Pro Fac Ext Cet Arc Hub Fac Was Fac Upp Upp War Pro Fac Upp Upp Zhi Pro Res Qua Res Tes Acc Matter Collected 7353 | 325 273 538 553 281 269 206 . 102 265 616 103 420 512 179 . 547 453 130 130 80 70 185 80 . 115 . 271 310 241 99 Remotely 10 | . . . . . . . . . . 10 . . . . . . . . . . . . . . . . . . . . Salvage Created 7912 | 96 408 510 1044 282 188 134 . 111 328 584 . 282 745 229 . 745 590 120 . 389 364 82 59 . . . 622 . . . Parts 399 | 11 25 34 59 15 6 13 . 15 13 24 . 23 33 10 . 27 29 3 . 17 7 2 7 . . . 26 . . . Haulers Intercepted 4 | . . . 1 1 . . . . . . . . 1 1 . . . . . . . . . . . . . . . . Recyclers Shooed 5 | . 1 1 2 . . . . . . . . . . . . . . . . . 1 . . . . . . . . . Parts Field Recycled . | . . . . . . . . . . . . . . . . . . . . . . . . . . . . . . . Retrieved Matter . | . . . . . . . . . . . . . . . . . . . . . . . . . . . . . . . Parts Self-Destructed 163 | . . . . . 8 10 . 19 . . . . . . . . 8 8 102 2 . . 6 . . . . . . . Prevented 29 | . . . . . . . . . . . . . . . . . 11 2 6 10 . . . . . . . . . . Kills | -11 -10 -9 -8 -7 -7 -7 -7 -6 -6 -6 -6 -6 -6 -5 -5 -5 -5 -5 -5 -4 -4 -4 -4 -4 -3 -3 -3 -2 -2 -1 ------- Run | Scr Mat Mat Mat Fac Low Low Dat Pro Fac Ext Cet Arc Hub Fac Was Fac Upp Upp War Pro Fac Upp Upp Zhi Pro Res Qua Res Tes Acc Combat Hostiles Destroyed 146 | . 10 9 20 8 6 6 . 5 5 8 . 1 9 2 . 8 14 1 . 8 5 5 5 . . . 11 . . . Melee 1 | . . . . . . . . . . . . . . . . . . . . . . . . . . . 1 . . . Guns 86 | . 10 9 14 4 4 2 . 2 5 8 . 1 9 2 . 7 2 . . . 5 2 . . . . . . . . Cannons 6 | . . . 2 4 . . . . . . . . . . . . . . . . . . . . . . . . . . AOE 44 | . . . 4 . 2 4 . 3 . . . . . . . 1 12 . . 5 . 3 5 . . . 5 . . . Classes Destroyed 18 | 2 3 2 5 . . . . 1 . . . . . . . . 2 . . . . . . . . . 3 . . . Worker 8 | . . . 5 2 . . . . . . . . . . . 1 . . . . . . . . . . . . . . Builder 3 | . . . 1 . . . . . . . . . 1 . . . . . . . 1 . . . . . . . . . Tunneler 3 | 2 . . . . . . . . . . . . 1 . . . . . . . . . . . . . . . . . Hauler 4 | . . . 1 1 . . . . . . . . 1 1 . . . . . . . . . . . . . . . . Recycler 8 | 1 . 1 3 . . . . . . 1 . . . . . 1 . . . . 1 . . . . . . . . . Operator 8 | . . 1 . . . . . . . . . 6 . 1 . . . . . . . . . . . . . . . . Watcher 7 | . 3 . . . . . . . . . . . 1 . . 2 . . . . 1 . . . . . . . . . Swarmer 55 | . 3 2 6 7 . 4 . 4 . 2 . . . . . . 12 . . 5 . 2 5 . . . 3 . . . Grunt 44 | . 7 1 7 1 5 1 . . 3 2 . . 4 2 . 4 . . . 3 1 . . . . . 3 . . . Brawler 2 | . . . 1 . . . . . . . . . . . . 1 . . . . . . . . . . . . . . Duelist 2 | . . . . . . . . . . . . . . . . . . . . . . . . . . . 2 . . . Researcher 2 | . . . . . . . . . . . . . . . . . . . . . . . . . . . 2 . . . Sentry 30 | . . 6 5 . 1 1 . . 2 4 . 1 2 . . 3 1 1 . . 2 1 . . . . . . . . Specialist 3 | . . . . . . . . . . . . . . . . . . . . . . . . . . . 3 . . . Hunter 6 | . . . 1 . . . . . . . . . 3 . . . . . . . . 2 . . . . . . . . Programmer 3 | . . . . . . . . 1 . . . . . . . . . . . . 2 . . . . . . . . . Decomposer 1 | . . . . . . . . . . . . . . . . . . 1 . . . . . . . . . . . . Samaritan 1 | . . . . . . . . . . . . . . . . . 1 . . . . . . . . . . . . . Mutant 1 | . . . . . . . . . . . . . . . . . 1 . . . . . . . . . . . . . Best Kill Streak 11 | 3 4 3 11 4 3 4 . 3 2 2 . 2 3 1 . 3 5 1 . 5 4 3 5 . . . 4 . . . Combat Bots Only 6 | . 4 3 6 4 3 4 . 3 2 2 . 1 2 1 . 2 5 1 . 5 2 3 5 . . . 4 . . . Max Kills in Single Turn 4 | 1 2 2 2 2 1 3 . 3 1 1 . 1 2 1 . 1 2 1 . 2 2 2 4 . . . 3 . . . Gunslinging 1 | . 1 1 . 1 . . . . . . . . . . . . . . . . . . . . . . . . . . Exploded 4 | . . . 1 . 1 3 . 3 . . . . . . . 1 2 . . 2 . 2 4 . . . 3 . . . Melee 1 | . . . . . . . . . . . . . . . . . . . . . . . . . . . 1 . . . Uniques/NPCs Destroyed . | . . . . . . . . . . . . . . . . . . . . . . . . . . . . . . . Combat | -11 -10 -9 -8 -7 -7 -7 -7 -6 -6 -6 -6 -6 -6 -5 -5 -5 -5 -5 -5 -4 -4 -4 -4 -4 -3 -3 -3 -2 -2 -1 -------- Run | Scr Mat Mat Mat Fac Low Low Dat Pro Fac Ext Cet Arc Hub Fac Was Fac Upp Upp War Pro Fac Upp Upp Zhi Pro Res Qua Res Tes Acc Damage Taken 18358 | . 317 817 1340 426 127 350 . 42 813 727 144 269 2743 19 . 1167 385 25 10 89 482 463 . . 260 . 3022 179 1810 2332 Core 4562 | . 12 96 167 74 16 92 . 28 81 86 14 70 594 . . 231 68 . . . 85 121 . . 17 . 410 . 682 1618 Absorbed by Shields 192 | . . . . . . . . . . 41 30 . . . . . . . 9 . 28 . . . . . . . 84 . Core Remaining (%) 66 | 100 95 76 69 . . . . 70 . . . . . . . . . . . 70 . . . . 80 . 55 . 52 . Volleys Fired 502 | 5 32 33 48 22 12 15 . 6 41 35 8 42 58 7 1 41 22 12 . 11 21 11 3 . . . 16 . . . Largest 2 | 2 2 2 2 2 2 2 . 2 2 2 2 2 2 2 2 2 2 1 . 1 1 1 1 . . . 1 . . . Hottest 265 | 60 40 90 110 67 50 50 . 50 50 60 265 108 113 65 60 63 63 43 . 60 60 60 43 . . . 60 . . . Shots Fired 857 | 10 63 63 93 42 15 27 . 8 79 63 12 81 106 12 2 76 31 12 . 11 21 11 3 . . . 16 . . . Gun 768 | 10 63 63 86 33 9 24 . 6 76 57 12 81 106 11 2 73 19 5 . 1 21 4 . . . . 6 . . . Cannon 13 | . . . 4 9 . . . . . . . . . . . . . . . . . . . . . . . . . . Launcher 76 | . . . 3 . 6 3 . 2 3 6 . . . 1 . 3 12 7 . 10 . 7 3 . . . 10 . . . Special . | . . . . . . . . . . . . . . . . . . . . . . . . . . . . . . . Kinetic 647 | 5 63 39 31 42 9 24 . 6 76 57 8 74 102 10 2 73 19 5 . . . . . . . . 2 . . . Thermal 36 | . . 5 16 . . . . . . . 4 7 4 . . . . . . . . . . . . . . . . . Explosive 35 | . . . 3 . 6 3 . 2 3 6 . . . 1 . . . . . . . 7 3 . . . 1 . . . Electromagnetic 109 | 5 . 19 43 . . . . . . . . . . 1 . 3 12 7 . 10 . . . . . . 9 . . . Entropic 30 | . . . . . . . . . . . . . . . . . . . . 1 21 4 . . . . 4 . . . Robot Hit Streak 34 | 9 12 19 34 6 5 13 . 4 17 26 29 6 27 8 10 14 15 11 . 18 20 6 4 . . . 6 . . . Robot Miss Streak 4 | . 3 4 3 2 2 1 . 1 2 1 2 4 3 2 . 2 1 . . . 3 2 . . . . 2 . . . Penetration Max 1 | . . . . . . . . . . 1 . 1 1 . . . . . . . . . . . . . . . . . Secondary Targets 9 | . 1 1 3 2 . . . . 1 . . . . . . 1 . . . . . . . . . . . . . . Max Gunslinging Chain 1 | . 1 1 1 1 . . . . 1 . . . . . . 1 . . . . . . . . . . . . . . Shots Hit Robots 682 | 9 43 46 83 24 10 23 . 4 63 48 5 54 81 8 2 54 23 10 17 7 27 7 1 . . . 20 2 11 . Core Hits 385 | 3 20 22 73 13 14 10 . 8 17 20 1 28 32 8 1 24 26 2 . 7 20 13 6 . . . 13 . . 4 Critical Hits 26 | . . . . . . . . . . 4 . 4 9 2 . 3 2 1 . . . . . . . . 1 . . . Critical Kills 9 | . . . . . . . . . . 1 . 3 4 1 . . . . . . . . . . . . . . . . Critical Parts Destroyed 16 | . . . . . . . . . . 3 . 1 5 1 . 2 2 1 . . . . . . . . 1 . . . Melee Attacks 162 | . . . . 3 . . . . . . . . 7 . . . 1 . 17 . 40 . . . . 15 53 6 20 . Kinetic 11 | . . . . . . . . . . . . . . . . . . . . . . . . . . . 11 . . . Impact 120 | . . . . 3 . . . . . . . . 7 . . . . . . . 40 . . . . 15 42 . 13 . Slashing . | . . . . . . . . . . . . . . . . . . . . . . . . . . . . . . . Piercing . | . . . . . . . . . . . . . . . . . . . . . . . . . . . . . . . Sneak Attacks 27 | . . . . . . . . . . . . . . . . . 1 . 17 . . . . . . . 1 1 7 . Combat Hostiles 6 | . . . . . . . . . . . . . . . . . . . . . . . . . . . . . 6 . Follow-up Attacks . | . . . . . . . . . . . . . . . . . . . . . . . . . . . . . . . Damage Inflicted 20642 | 112 561 739 2172 568 960 600 . 294 1051 1157 104 1352 2128 321 58 1991 1146 248 . 582 1390 810 383 . . . 1727 . 166 22 Guns 13049 | 112 560 639 1201 378 134 379 . 92 1051 1130 104 1351 2037 266 58 1466 364 121 . . 1203 186 . . . . 217 . . . Cannons 256 | . . . 66 190 . . . . . . . . . . . . . . . . . . . . . . . . . . Explosions 6375 | . . 100 905 . 826 221 . 202 . 27 . . 91 55 . 525 782 127 . 582 . 624 383 . . . 925 . . . Melee 839 | . . . . . . . . . . . . . . . . . . . . . 187 . . . . . 486 . 166 . Ramming 123 | . 1 . . . . . . . . . . 1 . . . . . . . . . . . . . . 99 . . 22 Kinetic 10660 | 54 560 324 315 568 134 379 . 92 1051 1130 81 1264 1981 232 58 1466 364 121 . . . . . . . . 486 . . . Thermal 1351 | . . 160 596 . . . . . . . 23 87 56 . . 66 59 . . 45 . . . . . . 259 . . . Explosive 3448 | . . . 559 . 826 221 . 202 . 27 . . . 55 . 300 . . . . . 624 383 . . . 251 . . . Electromagnetic 3101 | 58 . 255 702 . . . . . . . . . 91 34 . 159 723 127 . 537 . . . . . . 415 . . . Impact 353 | . . . . . . . . . . . . . . . . . . . . . 187 . . . . . . . 166 . Slashing . | . . . . . . . . . . . . . . . . . . . . . . . . . . . . . . . Piercing . | . . . . . . . . . . . . . . . . . . . . . . . . . . . . . . . Entropic 1606 | . . . . . . . . . . . . . . . . . . . . . 1203 186 . . . . 217 . . . Highest Corruption 21 | . 6 3 . 4 4 4 4 4 . 3 3 3 12 . . . . . . . . . . . . . 21 . 11 6 Average Corruption 3 | . 4 2 . 2 4 4 4 4 . 2 3 2 9 . . . . . . . . . . . . . 15 . 5 3 Corruption Purged 3 | . . . . . . . . . . . . 3 . . . . . . . . . . . . . . . . . . Effects 125 | . 17 5 . 9 7 11 2 7 . 16 7 6 . . . . . . . . . . . . . . 20 . 11 7 Message Errors 33 | . 4 1 . 3 1 3 . 1 . 4 3 1 . . . . . . . . . . . . . . 6 . 2 4 Matter Fused 17 | . 2 2 . . 1 4 1 1 . 1 1 1 . . . . . . . . . . . . . . 1 . 2 . Heat Flow Errors 17 | . 1 2 . 2 2 1 1 2 . 1 1 . . . . . . . . . . . . . . . 1 . 1 2 Energy Discharges 20 | . 2 . . 1 2 1 . 1 . 6 1 1 . . . . . . . . . . . . . . 1 . 3 1 Parts Rejected 1 | . 1 . . . . . . . . . . . . . . . . . . . . . . . . . . . . . Data Loss (minor) 17 | . 2 . . 2 1 1 . 2 . 2 . 3 . . . . . . . . . . . . . . 2 . 2 . Data Loss (major) 1 | . . . . . . . . . . . . . . . . . . . . . . . . . . . 1 . . . Misdirections 6 | . . . . . . . . . . . . . . . . . . . . . . . . . . . 5 . 1 . Targeting Errors 11 | . 4 . . 1 . 1 . . . 1 1 . . . . . . . . . . . . . . . 3 . . . Weapon Failures 2 | . 1 . . . . . . . . 1 . . . . . . . . . . . . . . . . . . . . Overload Shots 2 | . . . . . . . . . . . 2 . . . . . . . . . . . . . . . . . . . Overflow Damage 407 | . . . 26 . 23 . . . . 49 . . 49 . . 59 15 . . 14 17 6 . . . . 109 . 40 . Projectiles . | . . . . . . . . . . . . . . . . . . . . . . . . . . . . . . . Explosions 282 | . . . 26 . 23 . . . . 49 . . 49 . . 59 15 . . 14 . 6 . . . . 41 . . . Melee 125 | . . . . . . . . . . . . . . . . . . . . . 17 . . . . . 68 . 40 . Knockbacks 2 | . . . . 1 . . . . . . . . . . . . . . . . . . . . . . 1 . . . Impact 1 | . . . . . . . . . . . . . . . . . . . . . . . . . . . 1 . . . Kinetic 1 | . . . . 1 . . . . . . . . . . . . . . . . . . . . . . . . . . Secondary . | . . . . . . . . . . . . . . . . . . . . . . . . . . . . . . . Self-Inflicted Damage 802 | . . 83 223 . . . . 43 . 75 . . 102 . . 175 9 . . . . . . . . . 83 . . 9 Shots 20 | . . 2 8 . . . . 1 . 2 . . 1 . . 3 1 . . . . . . . . . 2 . . . Rammed 10 | . 1 . . . . . . . . . . 1 . . . . . . . . . . . . . . 1 . . 7 Targets Rammed 10 | . 1 . . . . . . . . . . 1 . . . . . . . . . . . . . . 1 . . 7 Kicked . | . . . . . . . . . . . . . . . . . . . . . . . . . . . . . . . Crushed . | . . . . . . . . . . . . . . . . . . . . . . . . . . . . . . . Highest Temperature 330 | . 149 213 192 154 196 276 92 261 283 157 265 292 116 15 10 134 12 . 200 . . . . . . . 217 330 82 114 Average Temperature 67 | . 35 92 88 45 55 106 54 93 101 30 95 100 32 5 8 43 6 . 110 . . . . . . . 130 313 58 67 Received Heat Transfer 2471 | . 156 153 357 18 66 99 . . 318 177 . 24 177 9 . 351 45 . 4 . 82 . . . 18 . 102 45 90 180 Effects 1 | . . . . . . . . . . . . 1 . . . . . . . . . . . . . . . . . . Interference 1 | . . . . . . . . . . . . 1 . . . . . . . . . . . . . . . . . . Siege Activations . | . . . . . . . . . . . . . . . . . . . . . . . . . . . . . . . Robots Corrupted 7 | . . . . . . . . . . . . . . . . . . 1 . 3 . . . . . . 3 . . . Combat Hostiles 7 | . . . . . . . . . . . . . . . . . . 1 . 3 . . . . . . 3 . . . Parts Fried 15 | . . 2 4 . . . . . . 1 . . . . . . 1 . . 5 . . . . . . 2 . . . Impact Corruptions 3 | . . . . . . . . . . . . . . . . . . . . . 1 . . . . . 1 . 1 . Robots Melted . | . . . . . . . . . . . . . . . . . . . . . . . . . . . . . . . Combat Hostiles . | . . . . . . . . . . . . . . . . . . . . . . . . . . . . . . . Parts Melted 2 | . . 1 1 . . . . . . . . . . . . . . . . . . . . . . . . . . . Heat Transferred 1677 | . . 298 705 . . . . . . . 50 200 74 . . 50 100 . . 50 . . . . . . 150 . . . Parts Sabotaged . | . . . . . . . . . . . . . . . . . . . . . . . . . . . . . . . Parts Stolen . | . . . . . . . . . . . . . . . . . . . . . . . . . . . . . . . Parts Stripped . | . . . . . . . . . . . . . . . . . . . . . . . . . . . . . . . Power Chain Reactions 14 | . . 2 5 . . . . . . . . . . . . . 3 . . 2 . . . . . . 2 . . . Missiles Intercepted . | . . . . . . . . . . . . . . . . . . . . . . . . . . . . . . . Alert | -11 -10 -9 -8 -7 -7 -7 -7 -6 -6 -6 -6 -6 -6 -5 -5 -5 -5 -5 -5 -4 -4 -4 -4 -4 -3 -3 -3 -2 -2 -1 ------- Run | Scr Mat Mat Mat Fac Low Low Dat Pro Fac Ext Cet Arc Hub Fac Was Fac Upp Upp War Pro Fac Upp Upp Zhi Pro Res Qua Res Tes Acc Peak Influence 797 | 15 230 268 557 264 . . . . 125 247 296 217 451 468 178 797 . . . . 426 . . . . 106 519 352 721 677 Initial 200 | . 9 33 101 184 . . . . 18 39 36 12 8 200 163 110 . . . . 171 . . . . 33 59 162 198 172 Average 201 | 7 103 184 379 116 . . . . 56 87 170 58 281 340 165 541 . . . . 232 . . . . 80 274 235 385 317 Maximum Alert Level 3 | . 1 1 2 1 . . . . . 1 1 1 2 2 . 3 . . . . 2 . . . . . 2 1 3 2 Low Security (%) 53 | 100 79 44 9 85 . . . . 100 95 53 80 13 . 100 4 . . . . 43 . . . . 100 23 9 3 36 Level 1 34 | . 20 55 46 14 . . . . . 4 46 19 82 60 . 16 . . . . 54 . . . . . 62 90 60 37 Level 2 9 | . . . 44 . . . . . . . . . 4 39 . 46 . . . . 1 . . . . . 14 . 20 26 Level 3 2 | . . . . . . . . . . . . . . . . 32 . . . . . . . . . . . . 15 . Level 4 . | . . . . . . . . . . . . . . . . . . . . . . . . . . . . . . . Level 5 . | . . . . . . . . . . . . . . . . . . . . . . . . . . . . . . . High Security . | . . . . . . . . . . . . . . . . . . . . . . . . . . . . . . . Max Security . | . . . . . . . . . . . . . . . . . . . . . . . . . . . . . . . Squads Dispatched 31 | . 1 1 2 1 . . . . 1 . . . 4 1 . . . . . . 2 . . . . 2 5 3 5 3 Investigation 7 | . 1 . 1 . . . . . . . . . 1 . . . . . . . . . . . . 2 . 1 . 1 Extermination 5 | . . . . 1 . . . . . . . . 1 . . . . . . . 1 . . . . . 1 . . 1 Reinforcement 16 | . . 1 . . . . . . 1 . . . 2 1 . . . . . . 1 . . . . . 3 2 4 1 Assault 1 | . . . . . . . . . . . . . . . . . . . . . . . . . . . 1 . . . Garrison 2 | . . . 1 . . . . . . . . . . . . . . . . . . . . . . . . . 1 . Intercept . | . . . . . . . . . . . . . . . . . . . . . . . . . . . . . . . Construction Impeded 1 | . . . . . . . . . 1 . . . . . . . . . . . . . . . . . . . . . Haulers Reinforced 2 | . . . . . . . . . . . . . . 1 . . . . . . . . . . . . . 1 . . Stealth | -11 -10 -9 -8 -7 -7 -7 -7 -6 -6 -6 -6 -6 -6 -5 -5 -5 -5 -5 -5 -4 -4 -4 -4 -4 -3 -3 -3 -2 -2 -1 --------- Run | Scr Mat Mat Mat Fac Low Low Dat Pro Fac Ext Cet Arc Hub Fac Was Fac Upp Upp War Pro Fac Upp Upp Zhi Pro Res Qua Res Tes Acc Distress Signals 31 | . 3 . 3 . . . . . 1 2 1 1 3 1 . 1 . . . . . . . . . . 1 5 1 8 Communications Jammed 17 | . . . . . . . . . . . . . . . . . . . . . . . . . . . . 7 10 . Distress Signals 17 | . . . . . . . . . . . . . . . . . . . . . . . . . . . . 7 10 . Times Spotted 419 | . 15 13 32 9 9 8 . 7 7 20 7 32 35 5 6 18 9 5 13 6 21 3 . . 4 1 29 12 32 61 Peak Tracking Total 21 | . 5 5 8 4 4 4 . 4 3 4 5 1 11 3 6 4 4 4 13 3 5 3 4 . 3 1 7 8 14 21 Tactical Retreats 51 | . . . 5 . 1 2 . 1 1 . . . 9 . . 2 . 1 . 1 5 . . . 3 . 2 3 4 11 Traps | -11 -10 -9 -8 -7 -7 -7 -7 -6 -6 -6 -6 -6 -6 -5 -5 -5 -5 -5 -5 -4 -4 -4 -4 -4 -3 -3 -3 -2 -2 -1 ------- Run | Scr Mat Mat Mat Fac Low Low Dat Pro Fac Ext Cet Arc Hub Fac Was Fac Upp Upp War Pro Fac Upp Upp Zhi Pro Res Qua Res Tes Acc Traps Triggered 16 | . 4 2 . 3 . . . . . 2 . . . 1 . . . . . . . . . . . 2 . . 1 1 Indirectly . | . . . . . . . . . . . . . . . . . . . . . . . . . . . . . . . Trap Hack Attempts . | . . . . . . . . . . . . . . . . . . . . . . . . . . . . . . . Triggered . | . . . . . . . . . . . . . . . . . . . . . . . . . . . . . . . Disarmed . | . . . . . . . . . . . . . . . . . . . . . . . . . . . . . . . Reprogrammed 6 | . . . . . . . . . . . . . . 6 . . . . . . . . . . . . . . . . Reused . | . . . . . . . . . . . . . . . . . . . . . . . . . . . . . . . Traps Extracted . | . . . . . . . . . . . . . . . . . . . . . . . . . . . . . . . Installed . | . . . . . . . . . . . . . . . . . . . . . . . . . . . . . . . Triggered 14 | . . . . . . 2 . 1 . . . . . . . . . . 11 . . . . . . . . . . . Machines | -11 -10 -9 -8 -7 -7 -7 -7 -6 -6 -6 -6 -6 -6 -5 -5 -5 -5 -5 -5 -4 -4 -4 -4 -4 -3 -3 -3 -2 -2 -1 ---------- Run | Scr Mat Mat Mat Fac Low Low Dat Pro Fac Ext Cet Arc Hub Fac Was Fac Upp Upp War Pro Fac Upp Upp Zhi Pro Res Qua Res Tes Acc Machines Disabled 64 | . . 3 1 . . . . . . 1 4 5 9 7 . 22 . . . . . . . . . . 9 . 3 . Max in Single Turn 6 | . . 2 1 . . . . . . 1 1 1 4 6 . 5 . . . . . . . . . . 1 . 1 . Garrison Access 11 | . . . . 1 . . . . . . . . 1 . . 3 . . . . 2 . . . . 2 1 . 1 . Network Hub 2 | . . . . . . . . . . . . . 2 . . . . . . . . . . . . . . . . . Machines Sabotaged . | . . . . . . . . . . . . . . . . . . . . . . . . . . . . . . . Garrisons Compromised . | . . . . . . . . . . . . . . . . . . . . . . . . . . . . . . . Overloaded Fab Kills . | . . . . . . . . . . . . . . . . . . . . . . . . . . . . . . . Fab Network Shutdowns . | . . . . . . . . . . . . . . . . . . . . . . . . . . . . . . . Hacking | -11 -10 -9 -8 -7 -7 -7 -7 -6 -6 -6 -6 -6 -6 -5 -5 -5 -5 -5 -5 -4 -4 -4 -4 -4 -3 -3 -3 -2 -2 -1 --------- Run | Scr Mat Mat Mat Fac Low Low Dat Pro Fac Ext Cet Arc Hub Fac Was Fac Upp Upp War Pro Fac Upp Upp Zhi Pro Res Qua Res Tes Acc Machines Accessed 109 | . 7 5 5 5 . . 4 . 1 5 3 1 4 5 . 12 . . 7 . 12 . . 6 . 8 9 3 6 1 Terminals 64 | . 6 5 2 2 . . . . 1 4 3 . 3 4 . 6 . . . . 9 . . . . 4 7 3 4 1 Fabricators . | . . . . . . . . . . . . . . . . . . . . . . . . . . . . . . . Repair Stations 8 | . . . 2 1 . . . . . . . . . 1 . 1 . . . . 1 . . . . . 1 . 1 . Recycling Units 4 | . 1 . 1 . . . . . . 1 . . . . . 1 . . . . . . . . . . . . . . Scanalyzers 4 | . . . . 1 . . . . . . . . . . . 1 . . . . . . . . . 2 . . . . Garrison Access 11 | . . . . 1 . . . . . . . . 1 . . 3 . . . . 2 . . . . 2 1 . 1 . Total Hacks 511 | . 32 23 18 8 . . 28 . 3 16 9 25 8 28 . 64 . . 21 . 90 . . 18 . 36 39 12 29 4 Successful 336 | . 19 13 13 6 . . 28 . 1 11 3 25 4 12 . 39 . . 21 . 48 . . 18 . 30 22 7 16 . Failed 174 | . 13 10 5 2 . . . . 2 5 6 . 4 16 . 25 . . . . 41 . . . . 6 17 5 13 4 Catastrophic 22 | . . 1 2 1 . . . . . 1 3 . . 1 . 1 . . . . 6 . . . . . 2 1 1 2 Database Lockouts 1 | . . . . . . . . . . . . . . . . . . . . . 1 . . . . . . . . . Manual 243 | . 18 19 12 2 . . . . 3 13 1 1 6 18 . 39 . . 1 . 61 . . . . 14 20 7 8 . Terminals 324 | . 26 23 7 3 . . . . 3 13 9 . 7 21 . 40 . . . . 80 . . . . 21 31 12 24 4 Fabricators . | . . . . . . . . . . . . . . . . . . . . . . . . . . . . . . . Repair Stations 32 | . . . 6 1 . . . . . . . . . 7 . 3 . . . . 6 . . . . . 6 . 3 . Recycling Units 16 | . 6 . 5 . . . . . . 3 . . . . . 2 . . . . . . . . . . . . . . Scanalyzers 32 | . . . . 3 . . . . . . . . . . . 16 . . . . . . . . . 13 . . . . Garrison Access 15 | . . . . 1 . . . . . . . . 1 . . 3 . . . . 4 . . . . 2 2 . 2 . Terminal Hacks 190 | . 10 7 1 1 . . 28 . . 2 3 25 1 4 . 8 . . 21 . 23 . . 18 . 11 13 5 9 . Record 63 | . . . . . . . 11 . . . 3 25 . . . . . . 15 . . . . 7 . 1 1 . . . Part Schematic 12 | . . . . . . . 7 . . . . . . . . . . . . . . . . 4 . . 1 . . . Robot Schematic 7 | . . . . . . . 7 . . . . . . . . . . . . . . . . . . . . . . . Robot Analysis 16 | . 1 1 . . . . . . . . . . . . . . . . . . 8 . . 3 . 3 . . . . Prototype ID Bank 23 | . 5 1 . . . . 3 . . . . . . . . . . . 5 . 4 . . 4 . . . 1 . . Open Door 3 | . . . . . . . . . . . . . . . . . . . 1 . . . . . . . 1 . 1 . Level Access Points 1 | . . . . . . . . . . . . . . . . . . . . . . . . . . . 1 . . . Branch Access Points 7 | . 1 1 . . . . . . . 1 . . . . . 1 . . . . 1 . . . . 1 1 . . . Machine Index 1 | . . . . . . . . . . . . . . . . . . . . . . . . . . 1 . . . . Terminal Index 8 | . 1 1 1 . . . . . . 1 . . 1 1 . 1 . . . . . . . . . . 1 . . . Fabricator Index 1 | . . . . . . . . . . . . . . . . . . . . . . . . . . . . 1 . . Alert Level 11 | . . 1 . . . . . . . . . . . . . 2 . . . . 2 . . . . . 1 2 3 . Unreport Threat 7 | . . . . . . . . . . . . . . . . 3 . . . . 1 . . . . . . . 3 . Locate Traps 9 | . 1 1 . 1 . . . . . . . . . 1 . . . . . . 2 . . . . 2 . . 1 . Reprogram Traps 1 | . . . . . . . . . . . . . . 1 . . . . . . . . . . . . . . . . Patrol Status 2 | . . 1 . . . . . . . . . . . . . . . . . . . . . . . . 1 . . . Recall Investigation 1 | . . . . . . . . . . . . . . . . . . . . . . . . . . 1 . . . . Recall Extermination 1 | . . . . . . . . . . . . . . . . . . . . . 1 . . . . . . . . . Recall Reinforcements 3 | . . . . . . . . . . . . . . . . . . . . . 1 . . . . . 2 . . . Zone Layout 13 | . 1 . . . . . . . . . . . . 1 . 1 . . . . 3 . . . . 2 3 1 1 . Fabricator Hacks . | . . . . . . . . . . . . . . . . . . . . . . . . . . . . . . . Repair Station Hacks 14 | . . . 3 . . . . . . . . . . 2 . 2 . . . . 4 . . . . . 1 . 2 . Scan Component 7 | . . . 1 . . . . . . . . . . 1 . 1 . . . . 2 . . . . . 1 . 1 . Repair 6 | . . . 1 . . . . . . . . . . 1 . 1 . . . . 2 . . . . . . . 1 . Refit 1 | . . . 1 . . . . . . . . . . . . . . . . . . . . . . . . . . . Recycling Unit Hacks 5 | . 1 . 2 . . . . . . 1 . . . . . 1 . . . . . . . . . . . . . . Report Inventory 2 | . 1 . 1 . . . . . . . . . . . . . . . . . . . . . . . . . . . Retrieve Components 3 | . . . 1 . . . . . . 1 . . . . . 1 . . . . . . . . . . . . . . Scanalyzer 25 | . . . . 2 . . . . . . . . . . . 13 . . . . . . . . . 10 . . . . Insert Component 12 | . . . . 1 . . . . . . . . . . . 6 . . . . . . . . . 5 . . . . Analyze 13 | . . . . 1 . . . . . . . . . . . 7 . . . . . . . . . 5 . . . . Garrison Access Hacks 11 | . . . . 1 . . . . . . . . 1 . . 3 . . . . 2 . . . . 2 1 . 1 . Seal Access 11 | . . . . 1 . . . . . . . . 1 . . 3 . . . . 2 . . . . 2 1 . 1 . Unauthorized Hacks 91 | . 8 6 7 2 . . . . 1 8 . . 2 6 . 12 . . . . 19 . . . . 7 7 2 4 . Terminals 75 | . 5 6 3 . . . . . 1 6 . . 2 5 . 10 . . . . 18 . . . . 6 7 2 4 . Track 36 | . 3 2 1 . . . . . . 3 . . 1 2 . 5 . . . . 7 . . . . 4 4 1 3 . Assimilate 9 | . . 1 . . . . . . . . . . . . . 2 . . . . 5 . . . . . 1 . . . Botnet 16 | . 1 2 1 . . . . . . 2 . . 1 2 . 2 . . . . 2 . . . . 1 1 . 1 . Disrupt 4 | . . . . . . . . . . 1 . . . . . . . . . . 3 . . . . . . . . . Operators 10 | . 1 1 1 . . . . . 1 . . . . 1 . 1 . . . . 1 . . . . 1 1 1 . . Fabricators . | . . . . . . . . . . . . . . . . . . . . . . . . . . . . . . . Repair Stations 6 | . . . 2 1 . . . . . . . . . 1 . 1 . . . . 1 . . . . . . . . . Mechanics 6 | . . . 2 1 . . . . . . . . . 1 . 1 . . . . 1 . . . . . . . . . Recycling Units 8 | . 3 . 2 . . . . . . 2 . . . . . 1 . . . . . . . . . . . . . . Monitor 3 | . 1 . 1 . . . . . . 1 . . . . . . . . . . . . . . . . . . . . Reject 1 | . 1 . . . . . . . . . . . . . . . . . . . . . . . . . . . . . Recyclers 4 | . 1 . 1 . . . . . . 1 . . . . . 1 . . . . . . . . . . . . . . Scanalyzers 2 | . . . . 1 . . . . . . . . . . . . . . . . . . . . . 1 . . . . Researchers 2 | . . . . 1 . . . . . . . . . . . . . . . . . . . . . 1 . . . . Garrison Access . | . . . . . . . . . . . . . . . . . . . . . . . . . . . . . . . Data Cores Recovered 1 | . . . . . . . . . . . . . . . . . . . . . 1 . . . . . . . . . Used . | . . . . . . . . . . . . . . . . . . . . . . . . . . . . . . . Hacking Detections 64 | . 6 5 4 3 . . . . 1 5 3 . 3 5 . 5 . . . . 8 . . . . 5 6 1 3 1 Full Trace Events 1 | . . . . . . . . . . . . . . . . . . . . . . . . . . . . . . 1 Feedback Events . | . . . . . . . . . . . . . . . . . . . . . . . . . . . . . . . Feedback Blocked . | . . . . . . . . . . . . . . . . . . . . . . . . . . . . . . . Robot Schematics Acquired 7 | . . . . . . . 7 . . . . . . . . . . . . . . . . . . . . . . . Robots Built . | . . . . . . . . . . . . . . . . . . . . . . . . . . . . . . . Matter . | . . . . . . . . . . . . . . . . . . . . . . . . . . . . . . . Time . | . . . . . . . . . . . . . . . . . . . . . . . . . . . . . . . Total Robot Build Rating . | . . . . . . . . . . . . . . . . . . . . . . . . . . . . . . . Part Schematics Acquired 22 | . . . . 1 . . 7 . . . . . . . . 5 . . . . . . . 4 . 4 1 . . . Parts Built . | . . . . . . . . . . . . . . . . . . . . . . . . . . . . . . . Matter . | . . . . . . . . . . . . . . . . . . . . . . . . . . . . . . . Time . | . . . . . . . . . . . . . . . . . . . . . . . . . . . . . . . Total Part Build Rating . | . . . . . . . . . . . . . . . . . . . . . . . . . . . . . . . Parts Repaired 6 | . . . 1 . . . . . . . . . . 1 . 1 . . . . 2 . . . . . . . 1 . Time 216 | . . . 38 . . . . . . . . . . 13 . 74 . . . . 79 . . . . . . . 12 . Parts Recycled . | . . . . . . . . . . . . . . . . . . . . . . . . . . . . . . . Recycled Matter . | . . . . . . . . . . . . . . . . . . . . . . . . . . . . . . . Retrieved Matter . | . . . . . . . . . . . . . . . . . . . . . . . . . . . . . . . Retrieved Components 18 | . . . 9 . . . . . . 3 . . . . . 6 . . . . . . . . . . . . . . Parts Scanalyzed 11 | . . . . 1 . . . . . . . . . . . 6 . . . . . . . . . 4 . . . . Part Schematics Acquired 10 | . . . . 1 . . . . . . . . . . . 5 . . . . . . . . . 4 . . . . Parts Damaged . | . . . . . . . . . . . . . . . . . . . . . . . . . . . . . . . Bothacking | -11 -10 -9 -8 -7 -7 -7 -7 -6 -6 -6 -6 -6 -6 -5 -5 -5 -5 -5 -5 -4 -4 -4 -4 -4 -3 -3 -3 -2 -2 -1 ------------ Run | Scr Mat Mat Mat Fac Low Low Dat Pro Fac Ext Cet Arc Hub Fac Was Fac Upp Upp War Pro Fac Upp Upp Zhi Pro Res Qua Res Tes Acc Used RIF Installer . | . . . . . . . . . . . . . . . . . . . . . . . . . . . . . . . Robots Hacked 4 | . . . . . . . . . . . . . . . . . 1 . . . . . . . . . . 2 1 . Non-combat 4 | . . . . . . . . . . . . . . . . . 1 . . . . . . . . . . 2 1 . Combat . | . . . . . . . . . . . . . . . . . . . . . . . . . . . . . . . Robot Hacks Applied 4 | . . . . . . . . . . . . . . . . . 1 . . . . . . . . . . 2 1 . parse_system 2 | . . . . . . . . . . . . . . . . . 1 . . . . . . . . . . 1 . . no_distress 1 | . . . . . . . . . . . . . . . . . . . . . . . . . . . . 1 . . find_station 1 | . . . . . . . . . . . . . . . . . . . . . . . . . . . . . 1 . Relay Couplers Released . | . . . . . . . . . . . . . . . . . . . . . . . . . . . . . . . Robots Rewired 16 | . . . . . . . . . . 10 . . . . . . . . 4 . . . . . . . . . 2 . Allies Hacked 1 | . . . . . . . . . . . . . . . . . . . . . 1 . . . . . . . . . Hacks Repelled . | . . . . . . . . . . . . . . . . . . . . . . . . . . . . . . . Allies | -11 -10 -9 -8 -7 -7 -7 -7 -6 -6 -6 -6 -6 -6 -5 -5 -5 -5 -5 -5 -4 -4 -4 -4 -4 -3 -3 -3 -2 -2 -1 -------- Run | Scr Mat Mat Mat Fac Low Low Dat Pro Fac Ext Cet Arc Hub Fac Was Fac Upp Upp War Pro Fac Upp Upp Zhi Pro Res Qua Res Tes Acc Total Allies 49 | . . 1 . . . . . 1 . 19 5 . . . 1 2 . . 4 . 3 . . . . . . . 2 11 Largest Group 11 | . . 1 1 . . . . 1 . 11 10 6 4 . 1 1 1 1 5 5 5 . . . . . . . 2 7 Highest-Rated Group 735 | . . 10 10 . . . . 94 . 430 735 626 376 . 31 26 26 26 198 198 198 . . . . . . . 305 96 Highest-Rated Ally 158 | . . 10 10 . . . . 94 . 156 156 156 94 . 31 26 26 26 60 60 60 . . . . . . . 158 15 Total Orders 44 | . . . . . . . . . . 2 1 4 . . . 4 10 2 . 8 13 . . . . . . . . . STAY 21 | . . . . . . . . . . 1 1 2 . . . 2 3 1 . 4 7 . . . . . . . . . FOLLOW 19 | . . . . . . . . . . 1 . 2 . . . 2 3 1 . 4 6 . . . . . . . . . EXPLORE 2 | . . . . . . . . . . . . . . . . . 2 . . . . . . . . . . . . . RETURN 2 | . . . . . . . . . . . . . . . . . 2 . . . . . . . . . . . . . Ally Attacks 328 | . . . . . . . . 10 . 69 78 17 38 . 12 . . . 11 . 14 . . . . . . . 46 33 Total Damage 9111 | . . . . . . . . 333 . 1295 1628 749 1228 . 192 . . . 845 . 340 . . . . . . . 1967 534 Kills 59 | . . . . . . . . 2 . 11 10 3 6 . . . . . 5 . 3 . . . . . . . 13 6 Allies Corrupted 4 | . . . . . . . . . . 1 . . . . . . . . . . 1 . . . . . . . 2 . Allies Melted 2 | . . . . . . . . . . . 1 . 1 . . . . . . . . . . . . . . . . . Intel | -11 -10 -9 -8 -7 -7 -7 -7 -6 -6 -6 -6 -6 -6 -5 -5 -5 -5 -5 -5 -4 -4 -4 -4 -4 -3 -3 -3 -2 -2 -1 ------- Run | Scr Mat Mat Mat Fac Low Low Dat Pro Fac Ext Cet Arc Hub Fac Was Fac Upp Upp War Pro Fac Upp Upp Zhi Pro Res Qua Res Tes Acc Robot Analysis Total 16 | . 1 1 . . . . . . . . . . . . . . . . . . 8 . . 3 . 3 . . . . Derelict Logs Recovered 8 | . . . . . 1 . . 2 . . . . . . . . 1 1 . 2 . 1 . . . . . . . . Drone Launches 3 | . . . . . . . . . . . . . . . . . 3 . . . . . . . . . . . . . Drone Recoveries 2 | . . . . . . . . . . . . . . . . . 2 . . . . . . . . . . . . . Exploration | -11 -10 -9 -8 -7 -7 -7 -7 -6 -6 -6 -6 -6 -6 -5 -5 -5 -5 -5 -5 -4 -4 -4 -4 -4 -3 -3 -3 -2 -2 -1 ------------- Run | Scr Mat Mat Mat Fac Low Low Dat Pro Fac Ext Cet Arc Hub Fac Was Fac Upp Upp War Pro Fac Upp Upp Zhi Pro Res Qua Res Tes Acc Turns Passed 16941 | 119 855 750 802 1138 464 476 131 615 503 1530 508 1350 1126 316 97 696 512 341 868 231 870 208 98 90 186 294 864 196 326 381 Spaces Moved 14568 | 58 462 364 333 584 270 236 84 298 223 779 269 502 543 376 156 929 686 603 824 245 1137 398 173 160 390 512 1064 440 643 827 Core 171 | 10 . . . . . . . . . . . . 18 27 . . . . . . . . . . . . . . . 116 Treads 4711 | 46 462 364 333 584 270 236 84 298 223 779 269 502 261 . . . . . . . . . . . . . . . . . Legs 266 | 2 . . . . . . . . . . . . 264 . . . . . . . . . . . . . . . . . Wheels . | . . . . . . . . . . . . . . . . . . . . . . . . . . . . . . . Hover 7633 | . . . . . . . . . . . . . . 349 156 929 686 603 824 245 1137 398 173 160 390 512 1064 7 . . Flight 1787 | . . . . . . . . . . . . . . . . . . . . . . . . . . . . 433 643 711 Fastest Speed 28 | 50 160 160 160 157 157 157 157 157 157 155 180 160 50 50 52 28 43 43 43 43 40 42 42 42 42 40 38 34 34 32 Average Speed 83 | 150 160 160 164 175 157 157 157 157 162 164 180 165 152 54 52 39 43 43 43 43 40 42 42 42 44 41 43 36 35 38 Slowest Speed 210 | 160 160 160 180 210 157 157 157 157 177 180 180 200 210 110 55 124 43 43 52 43 48 42 42 45 102 52 131 120 117 190 Overloaded Moves . | . . . . . . . . . . . . . . . . . . . . . . . . . . . . . . . Propulsion Burnouts . | . . . . . . . . . . . . . . . . . . . . . . . . . . . . . . . Robots Hopped 40 | . . . . . . . . . . . 1 . . . . . . . . . . . . . . . . 5 15 19 Cave-ins Triggered 2 | . . . . . . . . . . . . . 1 . . . . . . . . . . . . . 1 . . . Teleports 2 | . . . . . . . . . . . . . . . . . . . . . . . . . . . 2 . . . Exploration Rate (%) 49 | 4 78 32 32 18 48 44 69 46 7 63 78 99 41 12 82 20 81 57 90 46 27 63 38 62 65 17 86 18 81 27 Regions Visited 30 Branch Regions 18 Pre-discovered Areas 6 | . . . . . . . 1 . . . . . . . . . . 1 . . . 1 . 3 . . . . . . Known Exits Taken 20 | . . . . . 1 . . . 1 1 1 1 1 . . 1 1 1 1 1 1 1 1 1 1 1 1 1 1 . Unknown Exits Taken 8 | 1 1 1 1 1 . 1 1 1 . . . . . . . . . . . . . . . . . . . . . . Scrap Searched 14 | . . . . . . . . 1 . . . . . . . . 4 1 . 2 . 2 . . 4 . . . . . Spaces Dug 167 | . . . . 3 9 . . . . 65 . . 7 . . 7 . . . 3 33 . . . . 12 28 . . . Terrain Destroyed 821 | . . 6 28 3 40 35 . 20 13 83 1 4 161 16 . 154 24 3 . 14 40 45 50 . . 12 69 . . . Melee 82 | . . . . 3 . . . . . . . . 7 . . . . . . . 32 . . . . 12 28 . . . Projectile 102 | . . . 1 . . . . . . 6 1 4 3 5 . 51 15 3 . 3 8 2 . . . . . . . . AOE 637 | . . 6 27 . 40 35 . 20 13 77 . . 151 11 . 103 9 . . 11 . 43 50 . . . 41 . . . Terrain Rammed . | . . . . . . . . . . . . . . . . . . . . . . . . . . . . . . . Walls Destroyed . | . . . . . . . . . . . . . . . . . . . . . . . . . . . . . . . Machines Disabled . | . . . . . . . . . . . . . . . . . . . . . . . . . . . . . . . Actions | -11 -10 -9 -8 -7 -7 -7 -7 -6 -6 -6 -6 -6 -6 -5 -5 -5 -5 -5 -5 -4 -4 -4 -4 -4 -3 -3 -3 -2 -2 -1 --------- Run | Scr Mat Mat Mat Fac Low Low Dat Pro Fac Ext Cet Arc Hub Fac Was Fac Upp Upp War Pro Fac Upp Upp Zhi Pro Res Qua Res Tes Acc Total 18339 | 76 514 474 493 667 293 321 83 439 318 998 285 979 756 475 168 1182 866 671 1347 356 1441 426 194 179 401 566 1343 467 692 869 Wait 2313 | . 12 40 74 24 4 64 . 129 30 63 1 416 111 35 10 156 143 49 412 99 227 11 19 3 8 11 135 8 19 . Move 14462 | 57 461 363 332 583 269 235 83 297 222 778 266 501 541 376 155 928 685 602 823 244 1136 397 172 159 389 511 1062 430 614 791 Hop 35 | . . . . . . . . . . . 1 . . . . . . . . . . . . . . . . 4 13 17 Pick Up 113 | 1 5 11 10 9 . . . 2 5 5 . 3 8 19 . 6 1 1 2 . 3 2 . 1 . 5 11 1 2 . Fast Attach 187 | 8 . 4 9 7 . . . . 5 9 2 5 9 18 1 20 2 2 12 . 5 . . 6 1 7 12 11 16 16 Attach 73 | 1 . 6 8 1 . 1 . . 4 4 1 1 6 2 . 5 1 . . . 2 2 . 2 . 3 18 1 . 4 Detach 50 | 2 . 3 . 1 . . . . . 2 1 1 3 4 . 5 1 . 1 . 1 1 . 1 1 3 9 2 3 5 Swap 87 | 2 1 5 4 6 8 6 . 4 5 4 4 3 4 1 . 3 8 1 1 2 4 1 . 2 1 2 5 . . . Drop 170 | . 2 9 8 11 . . . 1 6 11 1 6 8 13 1 18 2 4 15 . 2 1 . 5 1 9 17 4 5 10 Fire 502 | 5 32 33 48 22 12 15 . 6 41 35 8 42 58 7 1 41 22 12 . 11 21 11 3 . . . 16 . . . Melee 162 | . . . . 3 . . . . . . . . 7 . . . 1 . 17 . 40 . . . . 15 53 6 20 . Ram 8 | . . . . . . . . . . . . . . . . . . . . . . . . . . . 1 . . 7 Kick . | . . . . . . . . . . . . . . . . . . . . . . . . . . . . . . . Crush 2 | . 1 . . . . . . . . . . 1 . . . . . . . . . . . . . . . . . . Escape Stasis 24 | . . . . . . . . . . . . . 1 . . . . . . . . . . . . . 4 . . 19 Rewire 151 | . . . . . . . . . . 87 . . . . . . . . 64 . . . . . . . . . . . Trap . | . . . . . . . . . . . . . . . . . . . . . . . . . . . . . . . Miscellaneous . | . . . . . . . . . . . . . . . . . . . . . . . . . . . . . . . Route ------- -11/Scrapyard -10/Materials (discovered 5 exits: *Mat x3 / *Min x2) -9/Materials (discovered 3 exits: *Mat / Min / Sto) -8/Materials -7/Factory -7/Lower Caves -7/Lower Caves (discovered 2 exits: Fac / *Dat) -7/Data Miner -6/Proximity Caves -6/Factory -6/Extension (discovered 2 exits: *Fac / *Cet) -6/Cetus -6/Archives (discovered 3 exits: *Fac / *Hub x2) -6/Hub_04(d) (discovered 3 exits: *Fac x3) -5/Factory -5/Waste -5/Factory (discovered 3 exits: *Fac / *Upp x2) -5/Upper Caves -5/Upper Caves (discovered 2 exits: *Fac / *War) -5/Warlord -4/Proximity Caves -4/Factory (discovered 3 exits: *Upp x2 / Arm) -4/Upper Caves -4/Upper Caves -4/Zhirov -3/Proximity Caves -3/Research (discovered 2 exits: *Qua x2) -3/Quarantine -2/Research (discovered 2 exits: *Acc / *Tes) -2/Testing -1/Access History --------- Turn | Location | Event 21 | -11/Scrapyard | Discovered new exit (range 15) 120 | -11/Scrapyard | Entered Materials 154 | -10/Materials | Discovered new exit (range 15) 311 | -10/Materials | Build established: Mutant 376 | -10/Materials | Discovered new exit (range 3) 562 | -10/Materials | Discovered new exit (range 15) 759 | -10/Materials | Discovered new exit (range 6) 772 | -10/Materials | Identified exit to Mines 975 | -10/Materials | Entered another Materials area 975 | -9/Materials | Evolved 2 slots: Utility x2 1667 | -9/Materials | Discovered new exit (range 12) 1703 | -9/Materials | Identified exit to Mines 1703 | -9/Materials | Identified exit to Storage 1715 | -9/Materials | Build established: Scavenger-Mutant 1725 | -9/Materials | Entered another Materials area 1725 | -8/Materials | Accompanied by 1 ally 1725 | -8/Materials | Evolved 2 slots: Utility x2 2171 | -8/Materials | Lost 4 parts (1p1n2w) 2494 | -8/Materials | Repaired Arm. Treads 2499 | -8/Materials | Garrison activated, responded to threat 2522 | -8/Materials | Discovered new exit (range 4) 2527 | -8/Materials | Entered Factory 2527 | -7/Factory | Evolved 2 slots: Utility x2 2996 | -7/Factory | Build established: Mutant 3602 | -7/Factory | Discovered new exit (range 17) 3665 | -7/Factory | Entered Lower Caves 3762 | -7/Lower Caves | Attracted the attention of an 0b10 checkpoint 3991 | -7/Lower Caves | Encountered a Warlord checkpoint 3995 | -7/Lower Caves | Identified exit to Lower Caves 4129 | -7/Lower Caves | Entered another Lower Caves area 4168 | -7/Lower Caves | Discovered new exit (range 13) 4196 | -7/Lower Caves | Encountered a Warlord checkpoint 4546 | -7/Lower Caves | Attracted the attention of an 0b10 checkpoint 4583 | -7/Lower Caves | Discovered new exit (range 11) 4605 | -7/Lower Caves | Entered Data Miner 4605 | -7/Data Miner | Discovered new exit (range 7) 4637 | -7/Data Miner | Met Data Miner 4676 | -7/Data Miner | Learned location of Section 7 (-3) 4676 | -7/Data Miner | Acquired the access code to Warlord's prototype stash 4698 | -7/Data Miner | Received God Mode back door access code from Data Miner 4736 | -7/Data Miner | Entered Proximity Caves 4936 | -6/Proximity Caves | Escorted by Enhanced Grunt 5081 | -6/Proximity Caves | Learned Factory machine intel 5207 | -6/Proximity Caves | Spotted B-75 Beast 5304 | -6/Proximity Caves | Discovered new exit (range 9) 5351 | -6/Proximity Caves | Entered Factory 5351 | -6/Factory | Evolved 2 slots: Power x1, Propulsion x1 5352 | -6/Factory | Identified exit to Extension 5353 | -6/Factory | Loaded intel: 274 machine locations 5724 | -6/Factory | Build established: Hacker-Mutant 5854 | -6/Factory | Entered Extension 6360 | -6/Extension | Rescued a captive Derelict 6362 | -6/Extension | Rescued a captive Derelict 6370 | -6/Extension | Identified exit to Cetus 6434 | -6/Extension | Build established: Commander-Mutant 6915 | -6/Extension | Rescued a captive Derelict 6916 | -6/Extension | Rescued a captive Derelict 7110 | -6/Extension | Rescued A7 7214 | -6/Extension | Rescued a captive Derelict 7215 | -6/Extension | Rescued a captive Derelict 7230 | -6/Extension | Rescued a captive Derelict 7231 | -6/Extension | Rescued a captive Derelict 7331 | -6/Extension | Discovered new exit (range 10) 7383 | -6/Extension | Disrupted transfer network 7384 | -6/Extension | Entered Cetus 7384 | -6/Cetus | Accompanied by 10 allies (A7) 7389 | -6/Cetus | Acquired a Cetus Manufacturing Module code from A7 7406 | -6/Cetus | Spotted Cetus Guard 7406 | -6/Cetus | Spotted Cetus Guard 7408 | -6/Cetus | Spotted Cetus Guard 7409 | -6/Cetus | Spotted Cetus Guard 7417 | -6/Cetus | Allies destroyed Cetus Guard 7420 | -6/Cetus | Allies destroyed Cetus Guard 7429 | -6/Cetus | Allies destroyed Cetus Guard 7430 | -6/Cetus | Allies destroyed Cetus Guard 7495 | -6/Cetus | Started Cetus Manufacturing Module 7520 | -6/Cetus | Manufactured an Enhanced Grunt 7545 | -6/Cetus | Manufactured an Enhanced Grunt 7570 | -6/Cetus | Manufactured an Enhanced Grunt 7595 | -6/Cetus | Manufactured an Enhanced Grunt 7620 | -6/Cetus | Manufactured an Enhanced Grunt 7764 | -6/Cetus | Escorted A7 to Cetus Mainframe 7865 | -6/Cetus | Discovered new exit (range 16) 7891 | -6/Cetus | Identified exit to Archives 7892 | -6/Cetus | Entered Archives 7892 | -6/Archives | Accompanied by 6 allies (A7) 7897 | -6/Archives | Received a hacking code to weaken MAIN.C 8063 | -6/Archives | Unable to access archive contents 8070 | -6/Archives | Discovered new exit (range 15) 8081 | -6/Archives | Unable to access archive contents 8088 | -6/Archives | Discovered new exit (range 15) 8297 | -6/Archives | Build established: Scavenger-Mutant 8703 | -6/Archives | Discovered new exit (range 16) 8725 | -6/Archives | Identified exit to Hub_04(d) 8834 | -6/Archives | Identified exit to Factory 8945 | -6/Archives | Unable to access archive contents 8962 | -6/Archives | Unable to access archive contents 8988 | -6/Archives | Unable to access archive contents 9242 | -6/Archives | Entered Hub_04(d) 9242 | -6/Hub_04(d) | Accompanied by 4 allies 9254 | -6/Hub_04(d) | Discovered exit to Factory (range 15) 9464 | -6/Hub_04(d) | Discovered exit to Factory (range 16) 9753 | -6/Hub_04(d) | Lost 4 parts (1p1n1u1w) 9875 | -6/Hub_04(d) | Discovered exit to Factory (range 15) 10102 | -6/Hub_04(d) | Core integrity fell below 50% 10140 | -6/Hub_04(d) | Lost 3 parts (1p1n1u) 10264 | -6/Hub_04(d) | Found Hvy. Reactive Plating 10310 | -6/Hub_04(d) | Network Hub disabled 10349 | -6/Hub_04(d) | Network Hub disabled 10349 | -6/Hub_04(d) | Spotted Lightning 10349 | -6/Hub_04(d) | Spotted Lightning 10349 | -6/Hub_04(d) | Spotted Lightning 10354 | -6/Hub_04(d) | Crushed by falling debris 10355 | -6/Hub_04(d) | System corruption reached 10% 10355 | -6/Hub_04(d) | Spotted Lightning 10359 | -6/Hub_04(d) | Core integrity fell below 20% 10363 | -6/Hub_04(d) | Spotted Lightning 10363 | -6/Hub_04(d) | Spotted Lightning 10363 | -6/Hub_04(d) | Spotted Lightning 10368 | -6/Hub_04(d) | Entered Factory 10368 | -5/Factory | Evolved 2 slots: Propulsion x2 10390 | -5/Factory | Lost 7 parts (2p3n2w) 10602 | -5/Factory | Repaired Lrg. Storage Unit 10671 | -5/Factory | Build established: Mutant 10684 | -5/Factory | Sucked down chute 10684 | -5/Factory | Entered Waste 10685 | -5/Waste | Met a frightened Derelict 10711 | -5/Waste | Spotted C-40 Crusher 10722 | -5/Waste | Spotted C-40 Crusher 10735 | -5/Waste | Spotted C-40 Crusher 10747 | -5/Waste | Spotted C-40 Crusher 10747 | -5/Waste | Spotted C-40 Crusher 10748 | -5/Waste | Spotted C-40 Crusher 10776 | -5/Waste | Discovered new exit (range 10) 10781 | -5/Waste | Identified exit to Factory 10781 | -5/Waste | Entered Factory 10845 | -5/Factory | Spotted B-75 Beast 11244 | -5/Factory | Repaired Cmb. Linear Gravjet 11326 | -5/Factory | Discovered new exit (range 9) 11335 | -5/Factory | Identified exit to Factory 11338 | -5/Factory | Identified exit to Upper Caves 11477 | -5/Factory | Entered Upper Caves 11477 | -5/Upper Caves | Accompanied by 1 ally 11483 | -5/Upper Caves | Attacked by a delusional Derelict stockpiling parts 11558 | -5/Upper Caves | Build established: Hacker-Mutant 11579 | -5/Upper Caves | Attracted the attention of an 0b10 checkpoint 11666 | -5/Upper Caves | Encountered a Warlord checkpoint 11978 | -5/Upper Caves | Discovered new exit (range 5) 11979 | -5/Upper Caves | Identified exit to Upper Caves 11980 | -5/Upper Caves | Learned Factory interactive machine intel 11989 | -5/Upper Caves | Entered another Upper Caves area 11989 | -5/Upper Caves | Accompanied by 1 ally 11990 | -5/Upper Caves | Encountered a Warlord checkpoint 12042 | -5/Upper Caves | Discovered exit to Factory (range 8) 12107 | -5/Upper Caves | Attracted the attention of an 0b10 checkpoint 12163 | -5/Upper Caves | Build established: Mutant 12322 | -5/Upper Caves | Discovered new exit (range 6) 12324 | -5/Upper Caves | Identified exit to Warlord 12330 | -5/Upper Caves | Entered Warlord 12330 | -5/Warlord | Accompanied by 1 ally 12341 | -5/Warlord | Discovered new exit (range 14) 12346 | -5/Warlord | Identified exit to Proximity Caves 12650 | -5/Warlord | Visited the Vortex Lab 12654 | -5/Warlord | Found Prototype Energy Cannon 12654 | -5/Warlord | Identified Vortex Driver 12657 | -5/Warlord | Warlord's base attacked by MAIN.C 12658 | -5/Warlord | Found Prototype Energy Gun 12658 | -5/Warlord | Identified Vortex Shotgun 12660 | -5/Warlord | Found Vortex Shotgun 12695 | -5/Warlord | Met Warlord 12795 | -5/Warlord | Build established: Commander-Mutant 13007 | -5/Warlord | Warlord forces counterattacked 13039 | -5/Warlord | Opened Warlord's prototype stash 13043 | -5/Warlord | Found Prototype Device 13043 | -5/Warlord | Identified Exp. Focal Shield 13048 | -5/Warlord | Found Prototype Hackware 13048 | -5/Warlord | Identified Ghost Barrier 13062 | -5/Warlord | Found Prototype Reactor 13062 | -5/Warlord | Identified Vortex Chain Reactor 13198 | -5/Warlord | Entered Proximity Caves 13198 | -4/Proximity Caves | Accompanied by 5 allies 13260 | -4/Proximity Caves | Learned Research terminal intel 13321 | -4/Proximity Caves | Learned 4 Research zone layouts 13348 | -4/Proximity Caves | Build established: Hacker-Mutant 13396 | -4/Proximity Caves | Discovered exit to Factory (range 11) 13429 | -4/Proximity Caves | Entered Factory 13429 | -4/Factory | Accompanied by 5 allies 13429 | -4/Factory | Evolved 2 slots: Propulsion x1, Utility x1 13430 | -4/Factory | Loaded intel: 46 interactive machine locations 13569 | -4/Factory | Repaired Cld. Antigrav System 13595 | -4/Factory | Repaired Gravmag Array 13655 | -4/Factory | Central database locked down 13931 | -4/Factory | Identified exit to Upper Caves 13931 | -4/Factory | Identified exit to Armory 14299 | -4/Factory | Entered Upper Caves 14402 | -4/Upper Caves | Attracted the attention of an 0b10 checkpoint 14489 | -4/Upper Caves | Learned location of Quarantine (-3) 14505 | -4/Upper Caves | Discovered new exit (range 7) 14507 | -4/Upper Caves | Identified exit to Upper Caves 14507 | -4/Upper Caves | Entered another Upper Caves area 14601 | -4/Upper Caves | Discovered new exit (range 10) 14605 | -4/Upper Caves | Identified exit to Zhirov 14605 | -4/Upper Caves | Entered Zhirov 14605 | -4/Zhirov | Discovered new exit (range 3) 14606 | -4/Zhirov | Identified exit to Proximity Caves 14613 | -4/Zhirov | Met Zhirov 14622 | -4/Zhirov | Learned location of Testing (-2) 14622 | -4/Zhirov | Learned location of Command (-1) 14630 | -4/Zhirov | Zhirov requested help retrieving the SGEMP Prototype 14639 | -4/Zhirov | Found Alien Artifact 14647 | -4/Zhirov | Found Alien Artifact 14647 | -4/Zhirov | Identified Integrated Dissipator 14647 | -4/Zhirov | Installed Integrated Dissipator, increased core heat dissipation (+20) 14695 | -4/Zhirov | Entered Proximity Caves 14697 | -3/Proximity Caves | Attracted the attention of an 0b10 checkpoint 14745 | -3/Proximity Caves | P-80 Master assimilated allied FG-P8X(S) 14797 | -3/Proximity Caves | Spotted B-86 Titan 14874 | -3/Proximity Caves | Discovered new exit (range 14) 14880 | -3/Proximity Caves | Identified exit to Research 14881 | -3/Proximity Caves | Entered Research 14881 | -3/Research | Evolved 2 slots: Power x1, Utility x1 14883 | -3/Research | Loaded intel: 19 terminal locations 14895 | -3/Research | Identified Transdimensional Reconstructor 15011 | -3/Research | Identified exit to Quarantine 15175 | -3/Research | Entered Quarantine 15202 | -3/Quarantine | Found Fusion Bomb Launcher 15220 | -3/Quarantine | Identified exit to Research 15232 | -3/Quarantine | Scanned by Researcher 15246 | -3/Quarantine | Found Alien Artifact 15246 | -3/Quarantine | Identified Phase Redirector 15317 | -3/Quarantine | Found Alien Impact Weapon 15317 | -3/Quarantine | Identified Core Stripper 15335 | -3/Quarantine | Found Alien Artifact 15337 | -3/Quarantine | Identified Stasis Generator 15579 | -3/Quarantine | Found Alien Artifact 15613 | -3/Quarantine | Found Alien Artifact 15638 | -3/Quarantine | Crushed by falling debris 15638 | -3/Quarantine | System corruption reached 10% 15656 | -3/Quarantine | Spotted Alpha 7 15668 | -3/Quarantine | Found Alien Artifact 15668 | -3/Quarantine | Identified Hpw. Transdimensional Reconstructor 15668 | -3/Quarantine | Warped through subspace 15669 | -3/Quarantine | Lost 5 parts (5u) 15727 | -3/Quarantine | Found Alien Energy Cannon 15727 | -3/Quarantine | Identified Core Cannon 15757 | -3/Quarantine | Found Alien Artifact 15758 | -3/Quarantine | Found Alien Artifact 15765 | -3/Quarantine | Identified Dimensional Node Initializer (x2) 15765 | -3/Quarantine | Initialized slip node 15769 | -3/Quarantine | Found Dimensional Node Initializer 15842 | -3/Quarantine | Initialized slip node 15866 | -3/Quarantine | Found Alien Artifact 15866 | -3/Quarantine | Identified Core Reset Matrix 15866 | -3/Quarantine | Identified Phase Armor 15866 | -3/Quarantine | Identified Matter Drive 15866 | -3/Quarantine | Used Core Reset Matrix 15870 | -3/Quarantine | Detected hypermatrix surge 15870 | -3/Quarantine | Sensed 6 artifacts in vicinity 15893 | -3/Quarantine | Met incapacitated Sigix Warrior 15893 | -3/Quarantine | Lockdown squad dispatched 15916 | -3/Quarantine | Initialized slip node 15923 | -3/Quarantine | Acquired the access code to the Sigix quarantine chamber 15925 | -3/Quarantine | First assault squad dispatched 15925 | -3/Quarantine | Unlocked Sigix quarantine chamber 15931 | -3/Quarantine | Warped through subspace to slip node 15940 | -3/Quarantine | Incoming assault squad redirected 15975 | -3/Quarantine | Spotted Lightning 15977 | -3/Quarantine | Spotted Lightning 15980 | -3/Quarantine | Spotted Lightning 16032 | -3/Quarantine | Discovered exit to Research (range 15) 16039 | -3/Quarantine | Entered Research 16039 | -2/Research | Warlord forces began assault on 0b10 16039 | -2/Research | Evolved 2 slots: Utility x2 16060 | -2/Research | Lost 9 parts (2p3n3u1w) 16149 | -2/Research | Research machine network offline 16187 | -2/Research | Found Prototype Processor 16187 | -2/Research | Identified Exp. Melee Analysis Suite 16191 | -2/Research | Spotted A9-5ZB(L) 16213 | -2/Research | Discovered new exit (range 17) 16232 | -2/Research | Identified exit to Testing 16232 | -2/Research | Discovered new exit (range 12) 16233 | -2/Research | Found Prototype Processor 16233 | -2/Research | Identified Exp. Targeting Computer 16235 | -2/Research | Entered Testing 16235 | -2/Testing | Spotted PH-H3TFTZBLAU 16237 | -2/Testing | Rewired PH-H3TFTZBLAU 16259 | -2/Testing | Repaired Great Maul 16267 | -2/Testing | Lost 4 parts (2p2u) 16297 | -2/Testing | Found Prototype Protection 16297 | -2/Testing | Identified Med. Regenerative Plating 16299 | -2/Testing | Found Prototype Protection 16299 | -2/Testing | Identified SHELL Armor 16303 | -2/Testing | Found Prototype Protection 16303 | -2/Testing | Identified Hvy. Regenerative Plating 16307 | -2/Testing | Found Med. Regenerative Plating 16321 | -2/Testing | Spotted PH-QVLUIJ95SI 16332 | -2/Testing | Rewired PH-QVLUIJ95SI 16348 | -2/Testing | Discovered new exit (range 14) 16353 | -2/Testing | Identified exit to Access 16396 | -2/Testing | Garrison activated, responded to threat 16489 | -2/Testing | Spotted Striker 16490 | -2/Testing | Spotted Striker 16495 | -2/Testing | Spotted Alpha 7 16497 | -2/Testing | Stole the SGEMP Prototype 16504 | -2/Testing | System corruption reached 10% 16543 | -2/Testing | Lost 10 parts (2p1n5u2w) 16547 | -2/Testing | Found Prototype Reactor 16547 | -2/Testing | Identified Zero-point Reactor 16561 | -2/Testing | Entered Access 16561 | -1/Access | Evolved 2 slots: Utility x2 16562 | -1/Access | Attacked by Zhirov 16617 | -1/Access | Spotted B-99 Colossus 16618 | -1/Access | Spotted B-99 Colossus 16813 | -1/Access | Incoming investigation squad redirected 16847 | -1/Access | Lost 3 parts (1p1n1u) 16896 | -1/Access | Spotted B-99 Colossus 16905 | -1/Access | Core integrity fell below 50% 16916 | -1/Access | Emitted hypermatrix ping 16921 | -1/Access | Assembled emerged from beneath the floor 16934 | -1/Access | Core integrity fell below 20% 16942 | -1/Access | Destroyed by G-73 Enforcer with Heavy Laser Last Messages --------------- 16919_ Penetrated by Slug. 16919_ Acquired 99 matter. 16920_ Penetrated by Slug. 16921_ Assembled emerge from beneath the floor. 16921_ Slug penetrates as-37758. 16923_ Detected hypermatrix ping. 16926_ U-05 Engineer lays Concrete. 16927_ U-05 Engineer builds a Wall. 16928_ U-05 Engineer lays Concrete. 16933_ Knocked back. 16933_ Slug penetrates U-05 Engineer. 16933_ Penetrated by Slug. 16933_ Slug penetrates Wall. 16933_ U-05 Engineer lays Concrete. 16934_ Slug penetrates Wall. 16934_ Penetrated by Slug. 16934_ Slug penetrates Wall. 16934_ U-05 Engineer lays Concrete. 16937_ Slug penetrates Wall. 16937_ U-05 Engineer lays Concrete. Map ----- +----------------------------------------------------+ | ???????????# ## ## """"" #?# ""#? | | ############ ## ## """"" #?# ""#? | | ## ## """"" #?# ""#? | | ## ## """"" #?""""""""""""? | | ########+####### ## """"" #?????????????? | | ???# ## ## ! """" #?????????????? | | ???# ## ## ! #?????????????? | | ???# ## ## #?????????????? | | ???# ## ## #?????????????? | | ???# ######################?????????????? | | ???# #??????????????????????????????????? | | ???# #?##############???????????????????? | | ???# #?# #???????????????????? | | ???# #?# #???????????????????? | | ???# " #?# #???????????????????? | | ???# """" #?# ! "" #???????????????????? | | ???# """"" #?# ! "" #???????#""""""""""#? | | ???# """"" #?# """"""#???????# #? | | #### """" #?# """"""#???????? #? | | + " #?# "" #???????? #? | | ###############?# "" #????????? #? | | ####????????????# #????????? #? | | #????????????# #?????????? #? | | #????????????# #?????????? #? | | #????????###########+#################! #???? | | #????????# @ u !%= #???? | | #????????# *=! #???? | | #???? # g % #???? | | " #?+ ? = + ggg u #???? | | #?# # %^! ##### | | #?# ??# # | | #?# ?# k # | | ####?# ?# #################;#"# # | | ?????# # =# #??### # # | | ?????# # [!# #????### ! # = " | | ?????# / g !%%+= #??????# # " | | ?????# # [%[# #??????# " | | ?????# !??# =[ # """"" #??????# # | | ?????######## #? """"" ??????????# # | | ?????# #? """"????????????# " | | ?????# #?? """"????????????# # | | ?????# #?? """"????????????# + | | ?????# #??? ?????????????# ##### | | ?????# #??? ?????????????# #??? | | ?????# #???? ?????????????# #???? | | ##+### #????################ #???? | | ###### #??????#[ # #???? | | #????? #??????# # ##### | | #????? #??????# + | | #????? #??????# """""# | +----------------------------------------------------+ Best States ------------- Heat Dissipation 104 Energy Generation 73 Energy Capacity 1345 Matter Stores 500 Matter Capacity 500 Sight Range 20 Robot Scan Range 20 Terrain Scan Range 20 Terrain Scan Density 210 Jamming Range 16 Cloak Strength 3 Additional Mass Support 9 Corruption Prevention 12 Armor Coverage 1125 Resistance: KI 30 Point Defense Rating 160 Weapon Cycling 30 Evasion (%) 77 Targeting Accuracy 24 Melee Accuracy 6 Core Analysis 6 Recoil Reduction 12 Energy Filtering 50 Particle Charging 20 Kinecelleration 30 Offensive Hacking 38 Defensive Hacking 20 Item Schematics ----------------- None Robot Schematics ------------------ None Fabricated ------------ Nothing Alien Tech Used ----------------- Integrated Dissipator Phase Redirector Core Stripper Stasis Generator High-powered Transdimensional Reconstructor Core Cannon Dimensional Node Initializer Core Reset Matrix Phase Armor Transdimensional Reconstructor Matter Drive Achievements -------------- Prolific Hacker Reappropriation Sunderer Challenges ------------ None Game ------ Seed ThiefFrostPick Manual? 0 Play Time 03:20:45 Cumulative 64.3 hours Start 2021.05.05 @ 04:03:20 End 2021.05.05 @ 07:27:21 Sessions 1 Manual Loads 0 Difficulty Rogue Special Mode None Game No. 115 Rogue 103 Adventurer 4 Explorer 8 Win Type - Total 5 Types 4/0/0/1/0/0/0/0/0 Lore% 53 Gallery% 69 Achievement% 48 Wizard Run 0 Options --------- ASCII 0 Keyboard 1 Movement Numpad Keybinds 0 Fullscreen 1 Font 18/SmallcapsGlow Map View 76x50 Tactical HUD 1 Map Filters NONE Filters NONE Steam 1 RUN: 3c74624a-8543-413b-b1ac-6f4939c3c3a8